Workbook

Sheet ADA DPAC AUG 2022 CAA
A1: DEPARTMENT OF TRANSPORTATION - CALTRANS
A2: DBE Commitment at Award (CAA) on Federally Funded Major Construction Contracts - October 1, 2021 - August 31, 2022
A4: Total Award Amount Year-to-Date (YTD) | C4: Total DBE Commitment Amount YTD | F4: Total Prime Contracts Awarded YTD
A5: 273573500 | C5: =SUM(C7:C18) -> 51147000 | F5: =SUM(C149:C161,I149:I157,F149:F161) -> 42
A6: Groups | C6: Commitment Dollars YTD | D6: Firms YTD | E6: Contracts YTD | F6: % of Contracts | G6: % of DBE $ | H6: % of Total $
A7: Hispanic American Male | C7: =SUMIF(D26:D52,"m", C26:C52) -> 12677890 | D7: =COUNTIF(D26:D52,"M") -> 19 | E7: =SUMIF(D26:D52,"M",E26:E52) -> 29 | F7: =E7/E20 -> 0.2042253521 | G7: =C7/C5 -> 0.2478716249 | H7: =C7/A5 -> 0.04634180577
A8: Hispanic American Female | C8: =SUMIF(D26:D52,"F", C26:C52) -> 1783540 | D8: =COUNTIF(D26:D52,"F") -> 7 | E8: =SUMIF(D26:D52,"F",E26:E52) -> 9 | F8: =E8/E20 -> 0.06338028169 | G8: =C8/C5 -> 0.03487086242 | H8: =C8/A5 -> 0.006519417999
A9: African American Male | C9: =SUMIF(D60:D64,"m", C60:C64) -> 216000 | D9: =COUNTIF(D60:D64,"M") -> 3 | E9: =SUMIF(D60:D64,"M",E60:E64) -> 3 | F9: =E9/E20 -> 0.02112676056 | G9: =C9/C5 -> 0.004223121591 | H9: =C9/A5 -> 0.0007895501575
A10: African American Female | C10: =SUMIF(D60:D64,"F", C60:C64) -> 320000 | D10: =COUNTIF(D60:D64,"F") -> 1 | E10: =SUMIF(D60:D64,"F",E60:E64) -> 1 | F10: =E10/E20 -> 0.007042253521 | G10: =C10/C5 -> 0.006256476431 | H10: =C10/A5 -> 0.001169703937
A11: Asian Pacific Male | C11: =SUMIF(D79:D104,"m", C79:C104) -> 11227800 | D11: =COUNTIF(D79:D104,"M") -> 21 | E11: =SUMIF(D79:D104,"M",E79:E104) -> 31 | F11: =E11/E20 -> 0.2183098592 | G11: =C11/C5 -> 0.2195202065 | H11: =C11/A5 -> 0.04104125582
A12: Asian Pacific Female | C12: =SUMIF(D79:D104,"F", C79:C104) -> 2400000 | D12: =COUNTIF(D79:D104,"F") -> 3 | E12: =SUMIF(D79:D104,"F",E79:E104) -> 5 | F12: =E12/E20 -> 0.03521126761 | G12: =C12/C5 -> 0.04692357323 | H12: =C12/A5 -> 0.008772779527
A13: Subcontinent Asian Male | C13: =SUMIF(D67:D76,"m", C67:C76) -> 11614000 | D13: =COUNTIF(D67:D76,"M") -> 8 | E13: =SUMIF(D67:D76,"M",E67:E76) -> 18 | F13: =E13/E20 -> 0.1267605634 | G13: =C13/C5 -> 0.2270709915 | H13: =C13/A5 -> 0.04245294226
A14: Subcontinent Asian Female | C14: =SUMIF(D67:D76,"F", C67:C76) -> 30000 | D14: =COUNTIF(D67:D76,"F") -> 1 | E14: =SUMIF(D67:D76,"F",E67:E76) -> 1 | F14: =E14/E20 -> 0.007042253521 | G14: =C14/C5 -> 0.0005865446654 | H14: =C14/A5 -> 0.0001096597441
A15: Native American Male | C15: =SUMIF(D55:D57,"m", C55:C57) -> 15000 | D15: =COUNTIF(D55:D57,"M") -> 1 | E15: =SUMIF(D55:D57,"M",E55:E57) -> 1 | F15: =E15/E20 -> 0.007042253521 | G15: =C15/C5 -> 0.0002932723327 | H15: =C15/A5 -> 5.482987205e-05
A16: Native American Female | C16: =SUMIF(D55:D57,"F", C55:C57) -> 0 | D16: =COUNTIF(D55:D57,"F") -> 0 | E16: =SUMIF(D55:D57,"F",E55:E57) -> 0 | F16: =E16/E20 -> 0 | G16: =C16/C5 -> 0 | H16: =C16/A5 -> 0
A17: Non Minority Women | C17: =SUMIF(D111:D144,"F", C111:C144) -> 10772770 | D17: =COUNTIF(D111:D144,"F") -> 33 | E17: =SUMIF(D111:D144,"F",E111:E144) -> 43 | F17: =E17/E20 -> 0.3028169014 | G17: =C17/C5 -> 0.2106236925 | H17: =C17/A5 -> 0.03937797338
A18: Non Minority Men | C18: =SUMIF(D107:D108,"M", C107:C108) -> 90000 | D18: =COUNTIF(D107:D108,"M") -> 1 | E18: =SUMIF(D107:D108,"M",E107:E108) -> 1 | F18: =E18/E20 -> 0.007042253521 | G18: =C18/C5 -> 0.001759633996 | H18: =C18/A5 -> 0.0003289792323
A20: Total | D20: =SUM(D7:D19) -> 98 | E20: =SUM(E7:E19) -> 142
A21: Total Prime Contracts Awarded | C21: =SUM(C149:C161,F149:F161,I149:I157) -> 42
A22: Red Italic = DBE firm as Prime
A23: BOLD = women
A25: Hispanic American | C25: Dollars | D25: M/F | E25: Contract | F25: Contract # | G25: Prime | H25: Prime Name | I25: Districts
A26: 360PSM | C26: ='[1]DPAC Worksheet'!E8 -> 150000 | D26: F | E26: 1 | F26: =fetchcomment(E26) -> 59A1156 | G26: 1 | H26: =fetchcomment(G26) -> DOKKEN ENGINEERING | I26: 59
A27: ACT CONSULTING ENGINEERS | B27: SB | C27: ='[1]DPAC Worksheet'!K7 -> 353950 | D27: M | E27: 3 | F27: =fetchcomment(E27) -> 12A1924 12A1946 06A2758 | G27: 2 | H27: =fetchcomment(G27) -> WSP USA INC ICF JONES | I27: 6,12
A28: ADV-SOC INC | C28: ='[1]DPAC Worksheet'!K12 -> 720000 | D28: M | E28: 1 | F28: =fetchcomment(E28) -> 59A1189 | G28: 1 | H28: =fetchcomment(G28) -> WOOD ENVIRONMENTAL | I28: 59
A29: ADVANCED TECHNOLOGY | C29: ='[1]DPAC Worksheet'!K22 -> 180000 | D29: M | E29: 1 | F29: =fetchcomment(E29) -> 07A5236 | G29: 1 | H29: =fetchcomment(G29) -> GEOSYNTEC CONSULTANTS INC | I29: 7
A30: APEX CIVIL ENGINEERING | C30: ='[1]DPAC Worksheet'!E21 -> 200000 | D30: F | E30: 1 | F30: =fetchcomment(E30) -> 59A1170 | G30: 1 | H30: =fetchcomment(G30) -> TY LIN INTERNATIONAL | I30: 59
A31: ARELLANO ASSOCIATES | B31: SB | C31: ='[1]DPAC Worksheet'!E38 -> 348540 | D31: F | E31: 3 | F31: =fetchcomment(E31) -> 07A5172 51A0556 12A1946 | G31: 2 | H31: =fetchcomment(G31) -> HNTB CORPORATION KIMLEY HORN AND ASSOCIATES ICF JONES | I31: 7,51,12
A32: BEST TESTLAB INC | C32: ='[1]DPAC Worksheet'!E54 -> 240000 | D32: F | E32: 1 | F32: =fetchcomment(E32) -> 04A6198 | G32: 1 | H32: =fetchcomment(G32) -> AECOM | I32: 4
A33: CABRINHA HEARN & | C33: ='[1]DPAC Worksheet'!K31 -> 315000 | D33: M | E33: 2 | F33: =fetchcomment(E33) ->  | G33: 1 | H33: =fetchcomment(G33) -> STANTEC CONSTRUCTION | I33: 7
A34: DIAZ CONSULTANTS | C34: ='[1]DPAC Worksheet'!K45 -> 280000 | D34: M | E34: 1 | F34: =fetchcomment(E34) -> 12A1924 | G34: 1 | H34: =fetchcomment(G34) -> WSP USA INC | I34: 12
A35: DUKE CULTURAL RESOURCES | C35: ='[1]DPAC Worksheet'!K51 -> 117900 | D35: M | E35: 1 | F35: =fetchcomment(E35) -> 12A1946 | G35: 1 | H35: =fetchcomment(G35) -> ICF JONES | I35: 12
A36: DYNAMIC PRECONSTRUCTION | C36: ='[1]DPAC Worksheet'!K62 -> 72000 | D36: M | E36: 1 | F36: =fetchcomment(E36) -> 03A3408 | G36: 1 | H36: =fetchcomment(G36) -> STANTON CONSTRUCTABILITY | I36: 3
A37: EARTHVIEW SCIENCE | B37: SB | C37: ='[1]DPAC Worksheet'!E61 -> 80000 | D37: F | E37: 1 | F37: =fetchcomment(E37) -> 04A6198 | G37: 1 | H37: =fetchcomment(G37) -> AECOM | I37: 4
A38: FOUNTAINHEAD CONSULTING | C38: ='[1]DPAC Worksheet'!K71 -> 5656800 | D38: M | E38: 2 | F38: =fetchcomment(E38) -> 07A5257 08A3374 | G38: 2 | H38: =fetchcomment(G38) -> FOUNTAINHEAD CONSULTING CORPORATION PPM GROUP INC | I38: 7, 8
A39: JLB TRAFFIC ENGINEERING | C39: ='[1]DPAC Worksheet'!K78 -> 150000 | D39: M | E39: 1 | F39: =fetchcomment(E39) -> 09A0884 | G39: 1 | H39: =fetchcomment(G39) -> NCM ENGINEERING | I39: 9
A40: LA SALLE SOLUTIONS LLC | C40: ='[1]DPAC Worksheet'!K89 -> 517240 | D40: M | E40: 3 | F40: =fetchcomment(E40) -> 08A3374 07A5297 07A5308 | G40: 2 | H40: =fetchcomment(G40) -> PPM GROUP INC WSP USA INC | I40: 7,8
A41: MARTINEZ GEOSPATIAL INC | C41: ='[1]DPAC Worksheet'!K109 -> 480000 | D41: M | E41: 1 | F41: =fetchcomment(E41) -> 59A1142 | G41: 1 | H41: =fetchcomment(G41) -> TOWILL INC | I41: 59
A42: MARTINI DRILLING CORP | C42: ='[1]DPAC Worksheet'!K98 -> 60000 | D42: M | E42: 1 | F42: =fetchcomment(E42) -> 07A5236 | G42: 1 | H42: =fetchcomment(G42) -> GEOSYNTEC CONSULTANTS INC | I42: 7
A43: MC LEAN & SCHULTZ INC | C43: ='[1]DPAC Worksheet'!K116 -> 300000 | D43: M | E43: 1 | F43: =fetchcomment(E43) -> 59A1163 | G43: 1 | H43: =fetchcomment(G43) -> AECOM | I43: 59
A44: MONTEZ GROUP INC | B44: SB | C44: ='[1]DPAC Worksheet'!K128 -> 990000 | D44: M | E44: 2 | F44: =fetchcomment(E44) -> 59A1151 59A1192 | G44: 2 | H44: =fetchcomment(G44) -> HDR CONSTRUCTION CONTROL CORPORATION GHIRADELLI ASSOCIATES | I44: 59
A45: MTGL INC | B45: SB | C45: ='[1]DPAC Worksheet'!E69 -> 690000 | D45: F | E45: 1 | F45: =fetchcomment(E45) -> 08A3327 | G45: 1 | H45: =fetchcomment(G45) -> SMITH-EMERY LABORATORIES INC | I45: 8
A46: PROCURA 360 GROUP LLC | B46: SB | C46: ='[1]DPAC Worksheet'!K134 -> 80000 | D46: M | E46: 1 | F46: =fetchcomment(E46) -> 04A6198 | G46: 1 | H46: =fetchcomment(G46) -> AECOM | I46: 4
A47: SIERRA GROUP | C47: ='[1]DPAC Worksheet'!E78 -> 75000 | D47: F | E47: 1 | F47: =fetchcomment(E47) -> 07A5349 | G47: 1 | H47: =fetchcomment(G47) -> ECORP CONSULTING | I47: 7
A48: SJ CONSTRUCTION MANAGEMENT | B48: SB | C48: ='[1]DPAC Worksheet'!K143 -> 270000 | D48: M | E48: 1 | F48: =fetchcomment(E48) -> 59A1151 | G48: 1 | H48: =fetchcomment(G48) -> HDR CONSTRUCTION CONTROL CORPORATION | I48: 59
A49: UNICO ENGINEERING CONSULTING | C49: ='[1]DPAC Worksheet'!K153 -> 1360000 | D49: M | E49: 3 | F49: =fetchcomment(E49) -> 59A1156 03A3405 59A1192 | G49: 2 | H49: =fetchcomment(G49) -> DOKKEN ENGINEERING GHIRARDELLI | I49: 3,59
A50: UNIFIED TRAFFIC SYSTEMS | C50: ='[1]DPAC Worksheet'!K164 -> 60000 | D50: M | E50: 1 | F50: =fetchcomment(E50) -> 07A5236 | G50: 1 | H50: =fetchcomment(G50) -> GEOSYNTEC CONSULTANTS INC | I50: 7
A51: VSCE INC | B51: SB | C51: ='[1]DPAC Worksheet'!K178 -> 715000 | D51: M | E51: 2 | F51: =fetchcomment(E51) -> 09A0855 59A1151 | G51: 2 | H51: =fetchcomment(G51) -> NV5 INC HDR CONSTRUCTION CONTROL CORPORATION | I51: 9,59
F52: =fetchcomment(E52) ->  | H52: =fetchcomment(G52) -> 
A54: Native American | C54: Dollars | D54: M/F | E54: Contract | F54: Contract # | G54: Prime | H54: Prime Name | I54: Districts
A55: FMF PANDION | B55: SB | C55: ='[1]DPAC Worksheet'!AI7 -> 15000 | D55: M | E55: 1 | F55: =fetchcomment(E55) -> 07A5172 | G55: 1 | H55: =fetchcomment(G55) -> HNTB CORPORATION | I55: 7
F56: =fetchcomment(E56) ->  | H56: =fetchcomment(G56) -> 
F57: =fetchcomment(E57) ->  | H57: =fetchcomment(G57) -> 
A59: African American | C59: Dollars | D59: M/F | E59: Contract | F59: Contract # | G59: Prime | H59: Prime Name | I59: Districts
A60: ACTIVEWAYZ ENGINEERING INC | B60: SB | C60: ='[1]DPAC Worksheet'!AU10 -> 160000 | D60: M | E60: 1 | F60: =fetchcomment(E60) -> 04A6198 | G60: 1 | H60: =fetchcomment(G60) -> AECOM | I60: 4
A61: ELLE CONSULTANTS | C61: ='[1]DPAC Worksheet'!AO8 -> 320000 | D61: F | E61: 1 | F61: =fetchcomment(E61) -> 07A5246 | G61: 1 | H61: =fetchcomment(G61) -> ELLE CONSULTANTS | I61: 7
A62: TERRY A HAYES ASSOCIATES INC | B62: SB | C62: ='[1]DPAC Worksheet'!AU18 -> 30000 | D62: M | E62: 1 | F62: =fetchcomment(E62) -> 07A5172 | G62: 1 | H62: =fetchcomment(G62) -> HNTB CORPORATION | I62: 7
A63: WILTEC | C63: ='[1]DPAC Worksheet'!AU27 -> 26000 | D63: M | E63: 1 | F63: =fetchcomment(E63) -> 12A1986 | G63: 1 | H63: =fetchcomment(G63) -> CDM SMITH INC | I63: 12
F64: =fetchcomment(E64) ->  | H64: =fetchcomment(G64) -> 
A66: Sub Cont Asian | C66: Dollars | D66: M/F | E66: Contract | F66: Contract # | G66: Prime | H66: Prime Name | I66: Districts
A67: AMC INC | C67: ='[1]DPAC Worksheet'!BG14 -> 3615000 | D67: M | E67: 5 | F67: =fetchcomment(E67) -> 07A5257 07A5297 07A5308 59A1184 59A1185 | G67: 4 | H67: =fetchcomment(G67) -> FOUNTAINHEAD CONSULTING CORPORATION WSP PRESCIENCE ATLAS TECHNICAL | I67: 7,59
A68: CHAUDHARY & ASSOCIATES | B68: SB | C68: ='[1]DPAC Worksheet'!BG29 -> 3580000 | D68: M | E68: 4 | F68: =fetchcomment(E68) -> 04A6213 59A1142 59A1152 07A5353 | G68: 4 | H68: =fetchcomment(G68) -> CHAUDHARY & ASSOCIATES INC TOWILL INC BROWN AND CALDWELL PSOMAS | I68: 4,7,59
A69: EARTH MECHANICS | C69: ='[1]DPAC Worksheet'!BG37 -> 150000 | D69: M | E69: 2 | F69: =fetchcomment(E69) -> 59A1163 59A1156 | G69: 2 | H69: =fetchcomment(G69) -> AECOM DOKKEN ENGINEERING | I69: 59
A70: IQON ENGINEERING INC | C70: ='[1]DPAC Worksheet'!BG45 -> 300000 | D70: M | E70: 2 | F70: =fetchcomment(E70) -> 07A5297 07A5308 | G70: 1 | H70: =fetchcomment(G70) -> WSP USA INC | I70: 7
A71: KAL KRISHNAN CONSULTING | C71: ='[1]DPAC Worksheet'!BG53 -> 492000 | D71: M | E71: 2 | F71: =fetchcomment(E71) -> 59A1181 07A5308 | G71: 2 | H71: =fetchcomment(G71) -> PARSONS TRANSPORTATION GROUP WSP USA INC | I71: 7,59
A72: POLYTECHINIQUE ENVIRONMENTAL | C72: ='[1]DPAC Worksheet'!BA9 -> 30000 | D72: F | E72: 1 | F72: =fetchcomment(E72) -> 07A5236 | G72: 1 | H72: =fetchcomment(G72) -> GEOSYNTEC CONSULTANTS INC | I72: 7
A73: S2 ENGINEERING | C73: ='[1]DPAC Worksheet'!BG62 -> 2160000 | D73: M | E73: 1 | F73: =fetchcomment(E73) -> 59A1189 | G73: 1 | H73: =fetchcomment(G73) -> WOOD ENVIRONMENTAL | I73: 59
A74: SIERRA GEOTECH DBE | C74: ='[1]DPAC Worksheet'!BG73 -> 1200000 | D74: M | E74: 1 | F74: =fetchcomment(E74) -> 03A3405 | G74: 1 | H74: =fetchcomment(G74) -> GHIRARDELLI ASSOCIATES | I74: 3
A75: TJKM | C75: ='[1]DPAC Worksheet'!BG81 -> 117000 | D75: M | E75: 1 | F75: =fetchcomment(E75) -> 12A1986 | G75: 1 | H75: =fetchcomment(G75) -> CDM SMITH INC | I75: 12
F76: =fetchcomment(E76) ->  | H76: =fetchcomment(G76) -> 
A78: Asian Pacific | C78: Dollars | D78: M/F | E78: Contract | F78: Contract # | G78: Prime | H78: Prime Name | I78: Districts
A79: 1ST CHOICE DBE INC | C79: ='[1]DPAC Worksheet'!W6 -> 80000 | D79: M | E79: 1 | F79: =fetchcomment(E79) -> 04A6198 | G79: 1 | H79: =fetchcomment(G79) -> AECOM | I79: 4
A80: ADVANTEC CONSULTING ENGINEERS | B80: SB | C80: ='[1]DPAC Worksheet'!W13 -> 705000 | D80: M | E80: 2 | F80: =fetchcomment(E80) -> 12A1924 11A3332 | G80: 2 | H80: =fetchcomment(G80) -> WSP USA INC KIMLEY-HORN AND ASSOCIATES | I80: 11, 12
A81: ALIQUOT ASSOCIATES | B81: SB | C81: ='[1]DPAC Worksheet'!W23 -> 375000 | D81: M | E81: 2 | F81: =fetchcomment(E81) -> 04A6213 04A6221 | G81: 2 | H81: =fetchcomment(G81) -> CHAUDHARY & ASSOCIATES INC WRECO | I81: 4
A82: ASSET LABORATORIES | C82: ='[1]DPAC Worksheet'!Q6 -> 60000 | D82: F | E82: 1 | F82: =fetchcomment(E82) -> 07A5236 | G82: 1 | H82: =fetchcomment(G82) -> GEOSYNTEC CONSULTANTS INC | I82: 7
A83: AXIOM ENGINEERING | C83: ='[1]DPAC Worksheet'!W31 -> 900000 | D83: M | E83: 1 | F83: =fetchcomment(E83) -> 59A1185 | G83: 1 | H83: =fetchcomment(G83) -> ATLAS TECHNICAL | I83: 59
A84: AYCE CONSULTING ENGINEERS INC | B84: SB | C84: ='[1]DPAC Worksheet'!Q19 -> 245000 | D84: F | E84: 1 | F84: =fetchcomment(E84) -> 12A1924 | G84: 1 | H84: =fetchcomment(G84) -> WSP USA INC | I84: 12
A85: BRYAN MORI BIOLOGICAL CONSULTING | C85: ='[1]DPAC Worksheet'!W39 -> 50000 | D85: M | E85: 1 | F85: =fetchcomment(E85) -> 06A2758 | G85: 1 | H85: =fetchcomment(G85) -> ICF JONES AND SONS | I85: 6
A86: CL SURVEYING AND MAPPING | C86: ='[1]DPAC Worksheet'!W48 -> 360000 | D86: M | E86: 1 | F86: =fetchcomment(E86) -> 07A5357 | G86: 1 | H86: =fetchcomment(G86) -> PSOMAS | I86: 7
A87: ELITE TRANSPORTATION GROUP INC | B87: SB | C87: ='[1]DPAC Worksheet'!W56 -> 40000 | D87: M | E87: 1 | F87: =fetchcomment(E87) -> 11A3332 | G87: 1 | H87: =fetchcomment(G87) -> KIMLEY HORN AND ASSOCIATES | I87: 11
A88: KCM ENGINEERING | C88: ='[1]DPAC Worksheet'!W78 -> 3660000 | D88: M | E88: 4 | F88: =fetchcomment(E88) -> 59A1151 59A1181 03A3405 59A1184 | G88: 4 | H88: =fetchcomment(G88) -> HDR CINSTRUCTION CONTROL CORP PARSONS TRANSPORTATION GROUP GHIRARDELLI ASSOCIATES PRESCIENCE CORP | I88: 3,59
A89: LIN CONSULTING | B89: SB | C89: ='[1]DPAC Worksheet'!W84 -> 80000 | D89: M | E89: 1 | F89: =fetchcomment(E89) -> 11A3332 | G89: 1 | H89: =fetchcomment(G89) -> KIMLEY HORN AND ASSOCIATES | I89: 11
A90: MOZAMO ENGINEERING | B90: SB | C90: ='[1]DPAC Worksheet'!Q31 -> 2095000 | D90: F | E90: 3 | F90: =fetchcomment(E90) -> 09A0855 59A1184 59A1185 | G90: 3 | H90: =fetchcomment(G90) -> NV5 INC PRESCIENCE ATLAS TECH | I90: 9,59
A91: OPAC CONSULTING | C91: ='[1]DPAC Worksheet'!W91 -> 600000 | D91: M | E91: 2 | F91: =fetchcomment(E91) -> 59A1163 59A1170 | G91: 2 | H91: =fetchcomment(G91) -> AECOM TY LIN INTERNATIONAL | I91: 59
A92: PARIKH CONSULTANTS | C92: ='[1]DPAC Worksheet'!W96 -> 150000 | D92: M | E92: 1 | F92: =fetchcomment(E92) -> 59A1170 | G92: 1 | H92: =fetchcomment(G92) -> TY LIN INTERNATIONAL | I92: 59
A93: PARK ENGINEERING | B93: SB | C93: ='[1]DPAC Worksheet'!W103 -> 1170000 | D93: M | E93: 2 | F93: =fetchcomment(E93) -> 59A1151 03A3405 | G93: 2 | H93: =fetchcomment(G93) -> HDR CINSTRUCTION CONTROL CORP GHIRARDELLI ASSOCIATES | I93: 3,59
A94: PRESCIENCE CORPORATION | C94: ='[1]DPAC Worksheet'!W110 -> 900000 | D94: M | E94: 1 | F94: =fetchcomment(E94) -> 04A6234 | G94: 1 | H94: =fetchcomment(G94) -> WSP USA INC | I94: 4
A95: RAIL SURVEYORS | C95: ='[1]DPAC Worksheet'!W117 -> 300000 | D95: M | E95: 1 | F95: =fetchcomment(E95) -> 04A6221 | G95: 1 | H95: =fetchcomment(G95) -> WRECO | I95: 4
A96: SILICON TRANSPORTATION | B96: SB | C96: ='[1]DPAC Worksheet'!W123 -> 96000 | D96: M | E96: 1 | F96: =fetchcomment(E96) -> 11A3332 | G96: 1 | H96: =fetchcomment(G96) -> KIMLEY HORN AND ASSOCIATES | I96: 11
A97: TATSUMI AND PARTNERS | B97: SB | C97: ='[1]DPAC Worksheet'!W130 -> 54300 | D97: M | E97: 2 | F97: =fetchcomment(E97) -> 07A5172 12A1946 | G97: 2 | H97: =fetchcomment(G97) -> HNTB CORPORATION ICF JONES & STOKES | I97: 7,12
A98: TRANSMAT | C98: ='[1]DPAC Worksheet'!W135 -> 180000 | D98: M | E98: 1 | F98: =fetchcomment(E98) -> 59A1185 | G98: 1 | H98: =fetchcomment(G98) -> ATLAS TECHNOLOGIES | I98: 59
A99: TRICERTUS LLC | C99: ='[1]DPAC Worksheet'!W147 -> 967500 | D99: M | E99: 3 | F99: =fetchcomment(E99) -> 03A3334 03A3405 04A6401 | G99: 2 | H99: =fetchcomment(G99) -> KREBS CORPORATION GHIRARDELLI ASSOCIATES | I99: 3,4
A100: WRECO | C100: ='[1]DPAC Worksheet'!W155 -> 240000 | D100: M | E100: 1 | F100: =fetchcomment(E100) -> 04A6198 | G100: 1 | H100: =fetchcomment(G100) -> AECOM | I100: 4
A101: Y & C TRANSPORTATION CONSULTANTS | C101: ='[1]DPAC Worksheet'!W161 -> 240000 | D101: M | E101: 1 | F101: =fetchcomment(E101) -> 04A6198 | G101: 1 | H101: =fetchcomment(G101) -> AECOM | I101: 4
A102: YEI ENGINEERS | B102: SB | C102: ='[1]DPAC Worksheet'!W166 -> 80000 | D102: M | E102: 1 | F102: =fetchcomment(E102) -> 04A6198 | G102: 1 | H102: =fetchcomment(G102) -> AECOM | I102: 4
F103: =fetchcomment(E103) ->  | H103: =fetchcomment(G103) -> 
F104: =fetchcomment(E104) ->  | H104: =fetchcomment(G104) -> 
A106: Other | C106: Dollars | D106: M/F | E106: Contract | F106: Contract # | G106: Prime | H106: Prime Name | I106: Districts
A107: ADH TECHNICAL SERVICES | B107: SB | C107: ='[1]DPAC Worksheet'!BS7 -> 90000 | D107: M | E107: 1 | F107: =fetchcomment(E107) -> 59A1152 | G107: 1 | H107: =fetchcomment(G107) -> BROWN AND CALDWELL | I107: 59
F108: =fetchcomment(E108) ->  | H108: =fetchcomment(G108) -> 
A110: Non Minority Women | C110: Dollars | D110: M/F | E110: Contract | F110: Contract # | G110: Prime | H110: Prime Name | I110: Districts
A111: AESCO INC | B111: SB | C111: ='[1]DPAC Worksheet'!BM7 -> 690000 | D111: F | E111: 1 | F111: =fetchcomment(E111) -> 08A3327 | G111: 1 | H111: =fetchcomment(G111) -> SMITH-EMERY LABORATORIES INC | I111: 8
A112: ALBAT | C112: ='[1]DPAC Worksheet'!BM13 -> 1620000 | D112: F | E112: 2 | F112: =fetchcomment(E112) -> 03A3405 59A1189 | G112: 2 | H112: =fetchcomment(G112) -> GHIRARDELLI ASSOCIATES WOOD ENVIRONMENTAL | I112: 3,59
A113: APPL INC | C113: ='[1]DPAC Worksheet'!BM30 -> 90000 | D113: F | E113: 1 | F113: =fetchcomment(E113) -> 07A5236 | G113: 1 | H113: =fetchcomment(G113) -> GEOSYNTEC CONSULTING | I113: 7
A114: ARCHAEO PALEO RESOURCES | C114: ='[1]DPAC Worksheet'!BM40 -> 30000 | D114: F | E114: 1 | F114: =fetchcomment(E114) -> 07A5236 | G114: 1 | H114: =fetchcomment(G114) -> GEOSYNTEC CONSULTING | I114: 7
A115: BENNETT ENGINEERING | B115: SB | C115: ='[1]DPAC Worksheet'!BM58 -> 535000 | D115: F | E115: 2 | F115: =fetchcomment(E115) -> 59A1152 09A0884 | G115: 2 | H115: =fetchcomment(G115) -> BROWN AND CALDWELL NCM ENGINEERING | I115: 9,59
A116: BLUE LAKE CIVIL | B116: SB | C116: ='[1]DPAC Worksheet'!BM47 -> 451500 | D116: F | E116: 3 | F116: =fetchcomment(E116) -> 11A3332 03A3334 04A6401 | G116: 2 | H116: =fetchcomment(G116) -> KIMLEY HORN AND ASSOCIATES KREBS CORPORATION | I116: 3, 4,11
A117: BURNE ENGINEERING SERVICES INC | C117: ='[1]DPAC Worksheet'!BM64 -> 350000 | D117: F | E117: 1 | F117: =fetchcomment(E117) -> 59A1156 | G117: 1 | H117: =fetchcomment(G117) -> DOKKEN ENGINEERING | I117: 59
A118: CIVIC EDGE CONSULTING LLC | B118: SB | C118: ='[1]DPAC Worksheet'!BM76 -> 80000 | D118: F | E118: 1 | F118: =fetchcomment(E118) -> 04A6198 | G118: 1 | H118: =fetchcomment(G118) -> AECOM | I118: 4
A119: COGSTONE RESOURCES MANAGEMENT | C119: ='[1]DPAC Worksheet'!BM83 -> 195000 | D119: F | E119: 1 | F119: =fetchcomment(E119) -> 07A5349 | G119: 1 | H119: =fetchcomment(G119) -> ECORP CONSULTING | I119: 7
A120: COSTIN PUBLIC OUTREACH GROUP | C120: ='[1]DPAC Worksheet'!BM92 -> 210000 | D120: F | E120: 1 | F120: =fetchcomment(E120) -> 12A1924 | G120: 1 | H120: =fetchcomment(G120) -> WSP USA INC | I120: 12
A121: DESTINATION ENTERPRISES | C121: ='[1]DPAC Worksheet'!BM97 -> 900000 | D121: F | E121: 1 | F121: =fetchcomment(E121) -> 03A3405 | G121: 1 | H121: =fetchcomment(G121) -> GHIRARDELLI ASSOCIATES | I121: 3
A122: FALCON ENGINEERING SERVICES INC | C122: ='[1]DPAC Worksheet'!BM109 -> 864000 | D122: F | E122: 1 | F122: =fetchcomment(E122) -> 59A1181 | G122: 1 | H122: =fetchcomment(G122) -> 59A1181 | I122: 59
A123: GALVIN PRESERVATION ASSOCIATES | B123: SB | C123: ='[1]DPAC Worksheet'!BM124 -> 485760 | D123: F | E123: 4 | F123: =fetchcomment(E123) -> 07A5172 12A1946 12A1947 06A2758 | G123: 3 | H123: =fetchcomment(G123) -> HNTB CORPORATION ICF JONES & STOKES LSA ASSOCIATES | I123: 6,7,12
A124: GATEWAY PACIFIC | B124: SB | C124: ='[1]DPAC Worksheet'!BM129 -> 256000 | D124: F | E124: 1 | F124: =fetchcomment(E124) -> 11A3332 | G124: 1 | H124: =fetchcomment(G124) -> KIMLEY HORN AND ASSOCIATES | I124: 11
A125: GEOWING MAPPING | B125: SB | C125: ='[1]DPAC Worksheet'!BM139 -> 400000 | D125: F | E125: 1 | F125: =fetchcomment(E125) -> 59A1142 | G125: 1 | H125: =fetchcomment(G125) -> TOWILL INC | I125: 59
A126: HARRIS MILLER MILL & HANSON INC | C126: ='[1]DPAC Worksheet'!BM145 -> 58950 | D126: F | E126: 1 | F126: =fetchcomment(E126) -> 12A1946 | G126: 1 | H126: =fetchcomment(G126) -> ICF JONES & STOKES | I126: 12
A127: HAYGOOD & ASSOCIATES | B127: SB | C127: ='[1]DPAC Worksheet'!BM158 -> 160000 | D127: F | E127: 1 | F127: =fetchcomment(E127) -> 04A6198 | G127: 1 | H127: =fetchcomment(G127) -> AECOM | I127: 4
A128: LEWIS JONES | B128: SB | C128: ='[1]DPAC Worksheet'!BM193 -> 192000 | D128: F | E128: 1 | F128: =fetchcomment(E128) -> 11A3332 | G128: 1 | H128: =fetchcomment(G128) -> KIMLEY HORN AND ASSOCIATES | I128: 11
A129: MBI MEDIA | B129: SB | C129: ='[1]DPAC Worksheet'!BM202 -> 60000 | D129: F | E129: 1 | F129: =fetchcomment(E129) -> 07A5172 | G129: 1 | H129: =fetchcomment(G129) -> HNTB CORPORATION | I129: 7
A130: MONUMENT ROW INC | C130: ='[1]DPAC Worksheet'!BM211 -> 214300 | D130: F | E130: 2 | F130: =fetchcomment(E130) -> 12A1924 12A1946 | G130: 2 | H130: =fetchcomment(G130) -> WSP USA INC ICF JONES & STOKES | I130: 12
A131: MOTHER EARTH ENGINEERING | C131: ='[1]DPAC Worksheet'!BM172 -> 1200000 | D131: F | E131: 1 | F131: =fetchcomment(E131) -> 03A3405 | G131: 1 | H131: =fetchcomment(G131) -> GHIRARDELLI ASSOCIATES | I131: 3
A132: P R R INC | C132: ='[1]DPAC Worksheet'!BM219 -> 209940 | D132: F | E132: 1 | F132: =fetchcomment(E132) -> 51A0556 | G132: 1 | H132: =fetchcomment(G132) -> KIMLEY HORN AND ASSOCIATES | I132: 51
A133: PACIFIC COAST ECOLOGY | C133: ='[1]DPAC Worksheet'!BM226 -> 50000 | D133: F | E133: 1 | F133: =fetchcomment(E133) -> 06A2758 | G133: 1 | H133: =fetchcomment(G133) -> ICF JONES & SONS | I133: 6
A134: PALEO SOLUTIONS | B134: SB | C134: ='[1]DPAC Worksheet'!BM241 -> 30000 | D134: F | E134: 1 | F134: =fetchcomment(E134) -> 07A5172 | G134: 1 | H134: =fetchcomment(G134) -> HNTB CORPORATION | I134: 7
A135: RUBICON ENGINEERING | C135: ='[1]DPAC Worksheet'!BM249 -> 60000 | D135: F | E135: 1 | F135: =fetchcomment(E135) -> 07A5236 | G135: 1 | H135: =fetchcomment(G135) -> GEOSYNTEC CONSULTING | I135: 7
A136: SAYLOR CONSULTING | B136: SB | C136: ='[1]DPAC Worksheet'!BM262 -> 90000 | D136: F | E136: 1 | F136: =fetchcomment(E136) -> 59A1152 | G136: 1 | H136: =fetchcomment(G136) -> BROWN AND CALDWELL | I136: 59
A137: SEQUOIA ECOLOGICAL CONSULTING | C137: ='[1]DPAC Worksheet'!BM269 -> 100000 | D137: F | E137: 1 | F137: =fetchcomment(E137) -> 06A2758 | G137: 1 | H137: =fetchcomment(G137) -> ICF JONES & SONS | I137: 6
A138: TORREY PINES ENVIRONMENTAL | C138: ='[1]DPAC Worksheet'!BM278 -> 100000 | D138: F | E138: 1 | F138: =fetchcomment(E138) -> 06A2758 | G138: 1 | H138: =fetchcomment(G138) -> ICF JONES & SONS | I138: 6
A139: TRI COUNTY DRILLING | B139: SB | C139: ='[1]DPAC Worksheet'!BM289 -> 225000 | D139: F | E139: 1 | F139: =fetchcomment(E139) -> 59A1152 | G139: 1 | H139: =fetchcomment(G139) -> BROWN AND CALDWELL | I139: 59
A140: VANDERMOST CONSULTING SERVICES | C140: ='[1]DPAC Worksheet'!BM310 -> 294320 | D140: F | E140: 1 | F140: =fetchcomment(E140) -> 12A1947 | G140: 1 | H140: =fetchcomment(G140) -> LSA ASSOCIATES | I140: 12
A141: VRPA TECHNOLOGIES | C141: ='[1]DPAC Worksheet'!BM299 -> 91000 | D141: F | E141: 1 | F141: =fetchcomment(E141) -> 12A1986 | G141: 1 | H141: =fetchcomment(G141) -> CDM SMITH INC | I141: 12
A142: WAGNER ENGINEERING | B142: SB | C142: ='[1]DPAC Worksheet'!BM317 -> 315000 | D142: F | E142: 2 | F142: =fetchcomment(E142) -> 59A1152 07A5326 | G142: 2 | H142: =fetchcomment(G142) -> BROWN AND CALDWELL STANTEC CONSULTING | I142: 7,59
A143: WATEARTH | B143: SB | C143: ='[1]DPAC Worksheet'!BM329 -> 165000 | D143: F | E143: 2 | F143: =fetchcomment(E143) -> 07A5172 04A6221 | G143: 2 | H143: =fetchcomment(G143) -> HNTB CORPORATION WRECO | I143: 4,7
F144: =fetchcomment(E144) -> 
A148: Prime Name | C148: # of Contracts | D148: Contract # | E148: Prime Name | F148: # of Contracts | G148: Contract # | H148: Prime Name | I148: # of Contracts | J148: Contract #
A149: AECOM | C149: 2 | D149: =fetchcomment(C149) -> 04A6198 59A1163 | E149: ICF JONES & STOKES INC | F149: 2 | G149: =fetchcomment(F149) -> 12A1946 06A2758 | H149: SMITH-EMERY LABORATORIES | I149: 1 | J149: =fetchcomment(I149) -> 08A3327
A150: ATLAS TECHNICAL CONSULTANTS LLC | C150: 1 | D150: =fetchcomment(C150) -> 59A1185 | E150: KIMELY HORN AND ASSOCIATES | F150: 2 | G150: =fetchcomment(F150) -> 11A3332 51A0556 | H150: TOWILL | I150: 1 | J150: =fetchcomment(I150) -> 59A1142
A151: BROWN AND CALDWELL | C151: 1 | D151: =fetchcomment(C151) -> 59A1152 | E151: KREBS CORPORATION | F151: 2 | G151: =fetchcomment(F151) -> 03A3334 04A6401 | H151: WOOD ENVIRONMENTAL & INFRASTRUCTURE INC | I151: 1 | J151: =fetchcomment(I151) -> 59A1192
A152: CDM SMITH INC | C152: 1 | D152: =fetchcomment(C152) -> 12A1986 | E152: LSA ASSOCIATES INC | F152: 1 | G152: =fetchcomment(F152) -> 12A1947 | H152: WRECO | I152: 1 | J152: =fetchcomment(I152) -> 04A6221
A153: CHAUDHARY & ASSOCIATES INC | C153: 1 | D153: =fetchcomment(C153) -> 04A6213 | E153: NCM ENGINEERS | F153: 1 | G153: =fetchcomment(F153) -> 09A0884 | H153: WSP USA INC | I153: 4 | J153: =fetchcomment(I153) -> 04A6234 12A1924 07A5297 07A5308
A154: DOKKEN ENGINEERING | C154: 1 | D154: =fetchcomment(C154) -> 59A1156 | E154: NV5 INC | F154: 1 | G154: =fetchcomment(F154) -> 09A0855 | J154: =fetchcomment(I154) -> 
A155: ECORP CONSULTING | C155: 1 | D155: =fetchcomment(C155) -> 07A5349 | E155: PARSONS TRANSPORTATION GROUP INC | F155: 2 | G155: =fetchcomment(F155) -> 11A3324 59A1181 | J155: =fetchcomment(I155) -> 
A156: ELLE CONSULTANTS | C156: 1 | D156: =fetchcomment(C156) -> 07A5246 | E156: PPM GROUP INC | F156: 1 | G156: =fetchcomment(F156) -> 08A3374 | J156: =fetchcomment(I156) -> 
A157: FOUNTAINHEAD CONSULTING CORPORATION | C157: 1 | D157: =fetchcomment(C157) -> 07A5257 | E157: PRESCIENCE CORPORATION | F157: 1 | G157: =fetchcomment(F157) -> 59A1184 | J157: =fetchcomment(I157) -> 
A158: GEOSYNTEC CONSULTANTS INC | C158: 1 | D158: =fetchcomment(C158) -> 07A5236 | E158: PSOMAS | F158: 2 | G158: =fetchcomment(F158) -> 07A5353 07A5357 | J158: =fetchcomment(I158) -> 
A159: GHIRARDELLI ASSOCIATES INC | C159: 2 | D159: =fetchcomment(C159) -> 03A3405 59A1192 | E159: STANTEC CONSULTING SERVICES INC | F159: 1 | G159: =fetchcomment(F159) -> 07A5326 | J159: =fetchcomment(I159) -> 
A160: HDR CONSTRUCTION CONTROL CORPORATION | C160: 1 | D160: =fetchcomment(C160) -> 59A1151 | E160: STANTON CONSTRUCTABILITY | F160: 2 | G160: =fetchcomment(F160) -> 03A3408 11A3412 | J160: =fetchcomment(I160) -> 
A161: HNTB CORPORATION | C161: 1 | D161: =fetchcomment(C161) -> 07A5172 | E161: TY LIN INTERNATIONAL | F161: 1 | G161: =fetchcomment(F161) -> 59A1170 | J161: =fetchcomment(I161) -> 
A163: To see names of prime contractors/contract numbers, place your cursor on comment tab (red triangle).
A164: Caltrans DBE Reports: http://www.dot.ca.gov/hq/bep/reports.htm
